bitfinex/quotes_ETHUSD_20250930
["timestamp","ask_amount","ask_price","bid_price","bid_amount"]
[1759260866087,2.41943079,4133.3,4133.0,0.84542484]
[1759260866258,2.41943079,4133.3,4133.1,0.84542484]
[1759260866461,2.41943079,4133.3,4133.2,0.15286893]
[1759260866660,2.41932776,4133.4,4133.2,0.84556893]
[1759260866986,2.41927345,4133.5,4133.3,3.5197]
[1759260867165,2.41925728,4133.5,4133.4,0.4537]
[1759260867900,0.1208,4133.7,4133.3,2.827]
[1759260868095,2.4,4133.6,4133.4,0.6927]
[1759260868399,4.81925728,4133.5,4133.4,0.6927]
[1759260868605,2.41925728,4133.5,4133.4,0.4537]
[1759260868982,2.41925728,4133.5,4133.4,0.60671454]
[1759260869887,0.2361,4134.3,4133.4,0.84571454]
[1759260870113,2.41919876,4133.6,4133.5,0.60671454]
[1759260870300,2.41919876,4133.6,4133.5,0.84571454]
[1759260870710,2.41919876,4133.6,4133.5,0.60671454]
[1759260871114,0.1208,4134.0,4133.5,0.60671454]
[1759260871285,2.41914023,4133.7,4133.6,0.84571454]
[1759260871934,2.41914023,4133.7,4133.6,0.15301454]
[1759260872140,5.05524023,4133.7,4133.6,2.97701454]
[1759260873296,4.81914023,4133.7,4133.6,2.97701454]
[1759260875511,2.4,4133.7,4133.6,2.97701454]
[1759260875820,4.81914023,4133.7,4133.6,3.5167]
[1759260876214,4.81914023,4133.7,4133.6,3.2777]
[1759260876526,4.81914023,4133.7,4133.6,2.824]
[1759260877025,5.05524023,4133.7,4133.6,2.821]
[1759260877525,4.81914023,4133.7,4133.6,2.821]
[1759260878708,5.05524023,4133.7,4133.6,2.821]
[1759260878890,2.4,4133.7,4133.6,3.2747]
[1759260879090,4.81914023,4133.7,4133.6,3.2747]
[1759260879420,4.81914023,4133.7,4133.6,2.821]
[1759260879925,2.4,4133.7,4133.6,2.821]
[1759260880124,4.81914023,4133.7,4133.6,2.821]
[1759260880424,2.4,4133.7,4133.6,2.821]
[1759260880630,2.41855812,4134.7,4133.8,2.41904044]
[1759260880830,0.001,4135.5,4133.9,3.53989023]
[1759260880995,0.2455,4135.5,4134.0,5.24196468]
[1759260881197,2.41847036,4134.9,4134.1,0.73358906]
[1759260881391,0.2445,4135.2,4134.2,1.30695537]
[1759260881607,0.001,4135.5,4134.3,3.5344]
[1759260881945,0.001,4135.5,4134.4,0.8161873]
[1759260882141,2.41826272,4135.2,4135.1,0.1208]
[1759260882323,2.41826272,4135.2,4135.1,2.9458]
[1759260882696,2.41826272,4135.2,4135.1,3.4166]
[1759260882931,2.41826272,4135.2,4135.1,2.9458]
[1759260883634,0.001,4135.5,4135.1,2.9458]
[1759260883802,2.41826272,4135.2,4135.1,2.9458]
[1759260884839,2.41815272,4135.4,4135.1,3.4166]
[1759260885139,2.41815852,4135.4,4135.1,3.4166]
[1759260885500,2.418164,4135.4,4135.1,3.4166]
[1759260886144,0.001,4135.5,4135.1,3.4166]
[1759260886440,2.418226,4135.3,4135.1,3.1844]
[1759260886598,0.001,4135.5,4135.4,0.1208]
[1759260886801,2.41908939,4135.5,4135.4,2.9428]
[1759260887626,0.001,4135.5,4135.4,7.13094721]
[1759260887801,0.001,4135.5,4135.4,7.10676576]
[1759260889523,0.001,4135.5,4135.4,4.68862]
[1759260890104,0.001,4135.5,4135.4,7.10676576]
[1759260890304,0.001,4135.5,4135.4,4.68862]
[1759260891531,0.001,4135.5,4135.4,7.10676576]
[1759260891702,0.001,4135.5,4135.4,4.68862]
[1759260892432,0.001,4135.5,4135.4,3.65802]
[1759260892637,0.001,4135.5,4135.4,2.822]
[1759260894540,0.001,4135.5,4135.4,2.82]
[1759260894902,0.001,4135.5,4135.4,5.23814576]
[1759260895510,0.001,4135.5,4135.4,2.82]
[1759260895705,0.001,4135.5,4135.4,5.70894576]
[1759260895919,0.001,4135.5,4135.4,4.1273839]
[1759260896448,0.001,4135.5,4135.4,6.54552966]
[1759260896617,0.001,4135.5,4135.4,4.1273839]
[1759260896816,0.001,4135.5,4135.4,6.54552966]
[1759260897146,0.001,4135.5,4135.4,6.78412966]
[1759260897569,0.001,4135.5,4135.4,6.90492966]
[1759260897932,0.001,4135.5,4135.4,6.66632966]
[1759260898120,0.001,4135.5,4135.4,7.69692966]
[1759260898320,0.001,4135.5,4135.4,7.93344897]
[1759260898628,0.001,4135.5,4135.4,10.66867987]
[1759260899517,0.001,4135.5,4135.4,10.31136056]
[1759260902138,0.001,4135.5,4135.4,7.15612966]
[1759260902338,0.001,4135.5,4135.4,3.25472966]
[1759260902651,0.001,4135.5,4135.4,7.74914576]
[1759260903433,0.001,4135.5,4135.4,8.54114576]
[1759260904047,0.2455,4135.5,4135.3,0.002]
[1759260904252,0.2455,4135.5,4135.4,2.816]
[1759260904456,0.001,4135.5,4135.4,5.23414576]
[1759260905147,0.001,4135.5,4135.4,2.816]
[1759260905352,0.001,4135.5,4135.4,5.23414576]
[1759260905834,0.2455,4135.5,4135.4,2.816]
[1759260906029,0.2455,4135.5,4135.4,5.23414576]
[1759260906230,0.001,4135.5,4135.4,5.75576034]
[1759260906536,0.001,4135.5,4135.4,3.33761458]
[1759260906723,0.001,4135.5,4135.4,5.75576034]
[1759260907108,0.001,4135.5,4135.4,7.25716034]
[1759260907361,0.001,4135.5,4135.4,7.59239124]
[1759260908320,0.001,4135.5,4135.4,7.71319124]
[1759260910724,0.001,4135.5,4135.4,6.76241458]
[1759260910942,0.2413,4135.5,4135.4,2.53894576]
[1759260911129,0.001,4135.5,4135.4,5.35094576]
[1759260912662,0.001,4135.5,4135.4,6.81324576]
[1759260913062,0.001,4135.5,4135.4,6.57574576]
[1759260913264,0.001,4135.5,4135.4,0.9128]
[1759260913433,0.2413,4135.5,4135.4,7.86394576]
[1759260914244,0.2413,4135.5,4135.4,2.53894576]
[1759260914735,0.2413,4135.5,4135.4,2.9308]
[1759260914945,0.6811,4135.5,4135.4,2.9308]
[1759260915141,0.2413,4135.5,4135.4,2.9308]
[1759260915375,0.2413,4135.5,4135.4,5.34894576]
[1759260915568,0.2413,4135.5,4135.4,0.1208]
[1759260915739,0.2413,4135.5,4135.4,2.9298]
[1759260915940,0.001,4135.5,4135.4,5.34794576]
[1759260916169,0.001,4135.5,4135.4,6.12476568]
[1759260916944,0.001,4135.5,4135.4,6.79506568]
[1759260918239,0.001,4135.5,4135.4,6.55756568]
[1759260920541,0.001,4135.5,4135.4,6.12476568]
[1759260922169,0.001,4135.5,4135.4,6.57766568]
[1759260922371,0.001,4135.5,4135.4,6.12476568]
[1759260923375,0.2421,4135.5,4135.4,6.12476568]
[1759260923547,0.2421,4135.5,4135.4,5.34794576]
[1759260924174,0.001,4135.5,4135.4,5.34794576]
[1759260924958,0.001,4135.5,4135.4,2.53894576]
[1759260925153,0.001,4135.5,4135.4,2.9258]
[1759260925361,0.2421,4135.5,4135.4,5.34394576]
[1759260925760,0.2421,4135.5,4135.4,6.37177105]
[1759260926179,0.2421,4135.5,4135.4,3.95362529]
[1759260926478,0.2421,4135.5,4135.4,5.34394576]
[1759260926646,0.001,4135.5,4135.4,5.34394576]
[1759260926852,0.001,4135.5,4135.4,2.53894576]
[1759260927077,0.001,4135.5,4135.4,2.9258]
[1759260927278,0.6922,4135.5,4135.4,2.9258]
[1759260928054,0.6922,4135.5,4135.4,0.1208]
[1759260928361,0.6922,4135.5,4135.4,2.9258]
[1759260928558,0.6922,4135.5,4135.4,0.1208]
[1759260928880,2.41814576,4135.4,4135.3,0.002]
[1759260929056,2.41814576,4135.4,4135.3,2.807]
[1759260929256,0.001,4135.5,4135.3,2.807]
[1759260929462,2.86824576,4135.4,4135.3,2.807]
[1759260929651,0.6912,4135.4,4135.3,2.807]
[1759260929853,0.001,4135.5,4135.3,2.807]
[1759260930046,0.6912,4135.4,4135.3,2.9278]
[1759260932484,3.10934576,4135.4,4135.3,2.9278]
[1759260932668,0.6912,4135.4,4135.3,0.1228]
[1759260932871,0.6912,4135.4,4135.3,2.9278]
[1759260933186,3.10934576,4135.4,4135.3,2.9278]
[1759260933485,3.10934576,4135.4,4135.3,2.807]
[1759260935388,0.6912,4135.4,4135.3,2.807]
[1759260935887,0.2411,4135.4,4135.3,2.807]
[1759260936275,2.65924576,4135.4,4135.3,2.807]
[1759260936667,0.2411,4135.4,4135.3,2.807]
[1759260937071,3.10934576,4135.4,4135.3,2.807]
[1759260941302,11.06613611,4135.4,4135.3,2.807]
[1759260942873,2.41837968,4135.0,4134.9,0.002]
[1759260943073,10.49597003,4135.0,4134.9,0.002]
[1759260943296,11.19797003,4135.0,4134.9,0.002]
[1759260944669,5.64117968,4135.0,4134.9,0.002]
[1759260945306,4.93917968,4135.0,4134.9,0.002]
[1759260945682,2.64622942,4135.5,4134.9,0.002]
[1759260945683,0.001,4135.5,4134.9,0.002]
[1759260945894,2.41837968,4135.0,4134.9,0.002]
[1759260947006,2.41833358,4135.1,4134.9,0.002]
[1759260947174,0.1208,4135.3,4134.9,0.002]
[1759260947501,0.1208,4135.3,4134.9,0.4487]
[1759260947687,2.41826272,4135.2,4134.9,0.4487]
[1759260948010,2.4183365,4135.1,4134.9,0.4487]
[1759260948478,0.1208,4135.3,4134.9,0.4487]
[1759260948675,0.1208,4135.3,4135.0,0.674]
[1759260948881,0.001,4135.5,4135.2,0.1208]
[1759260949288,2.41814576,4135.4,4135.3,0.674]
[1759260949510,2.41814576,4135.4,4135.2,0.1208]
[1759260949692,2.41814663,4135.4,4134.9,0.002]
[1759260949885,2.418149,4135.4,4135.0,2.805]
[1759260950092,2.53988908,4135.5,4135.0,2.805]
[1759260950385,2.41821526,4135.3,4135.1,0.4467]
[1759260950585,2.41821526,4135.3,4135.2,0.4467]
[1759260951089,2.53989952,4135.5,4135.2,0.4467]
[1759260951284,0.001,4135.5,4135.2,0.5675]
[1759260951498,2.41815955,4135.4,4135.3,0.4467]
[1759260952226,2.41820424,4135.3,4135.2,0.1208]
[1759260952375,2.41913032,4135.5,4135.2,0.5675]
[1759260952581,2.41817037,4135.4,4135.2,0.5675]
[1759260952776,0.001,4135.5,4135.2,0.5675]
[1759260952777,2.41820424,4135.3,4135.2,0.1208]
[1759260953195,2.4183212,4135.1,4135.0,2.805]
[1759260953597,0.001,4135.5,4135.3,0.792]
[1759260953797,0.001,4136.0,4135.9,2.41785342]
[1759260954006,1.14029459,4139.1,4136.6,2.41741574]
[1759260954201,0.4542,4138.5,4136.7,2.808]
[1759260954421,4.81645119,4138.3,4136.8,3.41]
[1759260954727,2.41683835,4137.7,4136.9,3.43417268]
[1759260954896,2.41683835,4137.7,4136.9,3.20687268]
[1759260955103,2.41683835,4137.7,4137.0,0.2273]
[1759260955421,2.41674978,4137.8,4137.0,0.2273]
[1759260955596,0.2271,4138.2,4137.0,0.2273]
[1759260955801,2.41656799,4138.1,4137.0,0.2273]
[1759260956001,0.2271,4138.2,4137.0,0.2273]
[1759260956205,2.41687661,4137.6,4137.0,0.2514721]
[1759260956626,2.41680006,4137.8,4137.0,0.2514721]
[1759260956821,2.41680523,4137.7,4137.1,0.4467]
[1759260957126,2.41686252,4137.6,4137.1,0.47087152]
[1759260957427,2.41692461,4137.5,4137.1,0.47087152]
[1759260957725,2.41691813,4137.6,4137.2,0.4467]
[1759260957893,0.2271,4138.0,4137.2,0.4467]
[1759260958222,2.4169824,4137.4,4137.1,0.02417152]
[1759260958427,2.4169824,4137.4,4137.0,0.58514408]
[1759260958590,2.4169824,4137.4,4137.0,1.03184408]
[1759260958788,2.4169824,4137.4,4137.0,1.05601618]
[1759260959004,0.2271,4137.9,4137.0,1.05601618]
[1759260959203,2.41699764,4137.4,4137.0,1.05601618]
[1759260959422,2.41699764,4137.4,4137.1,0.40193162]
[1759260959726,2.41703331,4137.4,4137.1,0.40193162]
[1759260960435,2.41680235,4137.7,4137.2,0.4467]
[1759260960436,2.41697561,4137.5,4137.2,0.4467]
[1759260960744,2.4,4137.8,4137.2,0.4467]
[1759260961104,2.4169305,4137.5,4137.2,0.4467]
[1759260961299,2.41686669,4137.6,4137.2,0.4467]
[1759260961504,2.41692089,4137.5,4137.2,0.83031037]
[1759260961721,2.41697708,4137.4,4137.2,0.83031037]
[1759260962056,2.41703526,4137.3,4136.9,2.736]
[1759260962338,2.64408349,4137.4,4136.9,2.736]
[1759260962502,0.2271,4137.4,4136.9,3.1827]
[1759260962701,2.4,4137.8,4136.0,0.3951209]
[1759260962903,2.41686001,4137.6,4136.1,3.478]
[1759260963134,2.41727662,4136.9,4136.2,0.84097381]
[1759260963635,2.41727662,4136.9,4136.8,0.1208]
[1759260963836,2.4171882,4137.1,4136.8,0.1208]
[1759260963837,0.2271,4137.1,4136.8,2.9248]
[1759260964406,2.41715481,4137.1,4136.8,2.9248]
[1759260964932,0.3479,4137.4,4136.8,2.9248]
[1759260965137,2.41705284,4137.3,4136.8,2.9248]
[1759260965339,2.64415284,4137.3,4136.8,2.9248]
[1759260965540,2.41720675,4137.1,4136.8,2.9248]
[1759260965742,0.2271,4137.2,4136.8,2.9248]
[1759260965906,2.64424685,4137.2,4136.8,2.9248]
[1759260966106,2.41710757,4137.2,4136.8,2.9248]
[1759260966408,0.2271,4137.1,4136.8,2.9248]
[1759260966933,0.2271,4137.1,4136.9,2.804]
[1759260967100,0.1208,4137.4,4136.9,2.804]
[1759260967101,2.41708463,4137.3,4136.9,2.804]
[1759260967304,2.41703987,4137.3,4136.9,2.804]
[1759260967509,2.41703987,4137.3,4137.0,0.674]
[1759260967709,0.1208,4137.4,4136.9,2.804]
[1759260967928,0.2271,4137.3,4136.9,2.804]
[1759260968135,0.2271,4137.2,4136.9,2.804]
[1759260968340,0.1208,4137.4,4136.9,2.804]
[1759260968544,0.2271,4137.3,4136.9,2.804]
[1759260968721,2.41721024,4137.1,4136.9,2.804]
[1759260969140,2.41721053,4137.0,4136.9,2.804]
[1759260969350,0.2271,4137.2,4136.9,2.804]
[1759260969540,0.1208,4137.4,4136.8,0.1208]
[1759260969725,0.1208,4137.4,4137.0,2.804]
[1759260969726,2.41703526,4137.3,4137.0,2.804]
[1759260969926,0.1208,4137.4,4137.0,2.804]
[1759260970241,2.76490175,4137.4,4137.0,2.804]
[1759260970447,2.41710057,4137.2,4137.0,2.804]
[1759260970748,2.41715211,4137.1,4137.0,2.804]
[1759260971245,0.1208,4137.4,4137.0,2.804]
[1759260971436,0.3515,4137.4,4137.0,2.804]
[1759260971634,2.76849008,4137.4,4137.0,2.804]
[1759260972017,2.41707488,4137.3,4137.0,2.804]
[1759260972221,2.41710374,4137.2,4137.0,2.804]
[1759260972631,2.41715211,4137.1,4137.0,2.804]
[1759260973028,2.41704405,4137.3,4137.0,2.804]
[1759260973420,2.64775167,4137.3,4137.0,2.804]
[1759260973748,0.2307,4137.3,4137.0,2.804]
[1759260974047,3.07899368,4137.2,4137.1,2.804]
[1759260974247,2.64779368,4137.2,4137.1,2.804]
[1759260974545,0.2307,4137.2,4137.1,2.804]
[1759260974956,2.64779368,4137.2,4137.1,2.804]
[1759260975153,2.41709368,4137.2,4137.1,2.804]
[1759260975745,2.53778985,4137.4,4137.1,2.804]
[1759260975967,2.41705174,4137.3,4137.1,2.804]
[1759260976336,0.1208,4137.4,4137.1,3.2607]
[1759260976534,2.41708858,4137.3,4137.1,3.2607]
[1759260976736,0.1208,4137.4,4137.2,0.4567]
[1759260977373,0.1208,4137.4,4137.1,2.804]
[1759260977670,2.41651481,4138.2,4137.2,0.02417093]
[1759260977840,0.1208,4137.9,4137.3,0.1208]
[1759260978168,0.1208,4137.9,4137.4,0.74116976]
[1759260978369,0.1208,4137.9,4137.5,5.93689899]
[1759260978527,0.1208,4137.9,4137.6,2.88882064]
[1759260978861,0.1208,4138.2,4137.6,3.27878924]
[1759260979061,0.1208,4138.2,4137.7,0.717]
[1759260979234,0.1208,4138.2,4137.8,0.717]
[1759260979436,0.1208,4138.2,4137.9,2.803]
[1759260979739,0.1208,4138.2,4137.9,3.275]
[1759260980263,0.1208,4138.2,4137.9,0.472]
[1759260980463,0.1208,4138.2,4138.0,2.803]
[1759260981468,2.53731183,4138.2,4138.0,2.803]
[1759260981665,0.1208,4138.2,4138.0,2.803]
[1759260982470,2.53735019,4138.2,4138.0,2.803]
[1759260982793,2.41656799,4138.1,4138.0,2.803]
[1759260983887,0.3649,4138.2,4138.0,2.803]
[1759260983888,2.78142955,4138.2,4138.0,2.803]
[1759260984195,0.1208,4138.2,4138.0,2.803]
[1759260984688,0.1208,4138.2,4138.0,3.048]
[1759260984874,4.81633442,4138.5,4138.1,0.472]
[1759260985082,2.41649067,4138.3,4138.1,0.472]
[1759260985654,0.1208,4138.4,4138.1,0.472]
[1759260985960,2.41656799,4138.1,4138.0,2.803]
[1759260986161,2.41650779,4138.3,4137.6,0.1208]
[1759260986364,2.66060779,4138.3,4137.7,2.82616801]
[1759260986572,0.1208,4138.4,4137.8,0.472]
[1759260986892,2.53724601,4138.4,4137.8,0.472]
[1759260987064,2.41649996,4138.3,4137.8,0.472]
[1759260987464,2.41649996,4138.3,4137.9,0.472]
[1759260987673,2.41618453,4138.8,4138.0,3.51205791]
[1759260987886,2.41627272,4138.7,4138.1,3.519]
[1759260988260,0.2441,4138.8,4138.1,3.519]
[1759260988510,2.41632319,4138.6,4138.0,0.3543168]
[1759260988806,2.4163378,4138.5,4138.1,2.802]
[1759260988962,0.2441,4138.5,4138.1,3.274]
[1759260989159,2.41628436,4138.6,4138.1,2.802]
[1759260989363,2.41628436,4138.6,4138.1,3.274]
[1759260989564,3.11847666,4138.5,4138.2,2.802]
[1759260989806,2.41667308,4138.0,4137.4,2.513]
[1759260990015,2.66068291,4138.1,4137.5,2.802]
[1759260990205,2.41611413,4138.9,4137.5,2.802]
[1759260990206,2.66038175,4138.6,4137.6,3.15798821]
[1759260990516,2.41646581,4138.3,4137.6,3.15798821]
[1759260990707,0.2441,4138.6,4137.6,0.7411686]
[1759260990884,2.41654949,4138.2,4137.6,0.7411686]
[1759260991079,2.41646602,4138.3,4137.6,4.24703817]
[1759260991306,2.66049801,4138.4,4137.7,0.472]
[1759260991484,2.41645274,4138.3,4137.8,0.02416743]
[1759260991811,0.2441,4138.4,4137.9,2.802]
[1759260991980,2.6605427,4138.4,4137.9,3.519]
[1759260992317,0.2441,4138.4,4137.9,3.274]
[1759260992485,0.2441,4138.4,4137.9,2.802]
[1759260992695,0.2441,4138.4,4138.0,0.472]
[1759260992902,2.66050153,4138.4,4138.0,0.472]
[1759260993103,0.2441,4138.4,4138.0,0.472]
[1759260993479,2.41645514,4138.3,4138.0,0.472]
[1759260993988,2.41645514,4138.3,4137.9,2.802]
[1759260994188,2.41645514,4138.3,4137.9,3.274]
[1759260994509,0.2441,4138.4,4138.0,0.472]
[1759260994803,2.41639285,4138.4,4138.0,0.472]
[1759260995183,0.2441,4138.4,4137.9,2.82616684]
[1759260995412,2.41648644,4138.3,4137.9,3.274]
[1759260996087,0.2441,4139.0,4138.0,0.717]
[1759260996287,2.41634921,4138.5,4138.1,0.472]
[1759260996493,2.41634921,4138.5,4138.1,0.717]
[1759260996695,0.2441,4138.7,4138.2,0.717]
[1759260996897,2.41632167,4138.6,4138.3,3.273]
[1759260997096,2.4,4138.7,4138.3,2.801]
[1759260997297,0.2441,4138.7,4138.3,2.801]
[1759260997499,2.41627603,4138.6,4138.3,2.801]
[1759260997910,2.66033433,4138.7,4138.3,2.801]
[1759260998485,0.1208,4138.8,4138.3,2.801]
[1759260998684,0.3649,4138.8,4138.3,3.273]
[1759260998891,4.81622011,4138.7,4138.3,3.273]
[1759260999091,2.4,4138.7,4138.3,3.273]
[1759260999511,2.4,4138.7,4138.4,0.717]
[1759260999716,0.1208,4138.8,4138.4,0.26916392]
[1759260999879,0.1208,4138.8,4138.4,0.02416392]
[1759261000212,0.1208,4138.8,4138.5,2.801]
[1759261000388,0.2441,4138.7,4138.5,2.801]
[1759261000582,0.1208,4138.8,4138.5,3.273]
[1759261000778,0.1208,4139.0,4138.5,2.801]
[1759261000981,2.53685322,4139.0,4138.6,0.4499]
[1759261001612,0.1208,4139.0,4138.6,0.4499]
[1759261001827,2.41616131,4138.8,4138.6,0.2472]
[1759261002124,2.41627603,4138.6,4138.5,0.1208]
[1759261002286,2.41627603,4138.6,4138.5,2.9218]
[1759261002826,2.4162262,4138.7,4138.5,2.9218]
[1759261003232,0.2465,4139.0,4138.5,2.9218]
[1759261003536,2.41627603,4138.6,4138.5,2.9218]
[1759261003828,2.41622986,4138.7,4138.5,2.9218]
[1759261004029,2.41623191,4138.7,4138.5,2.9218]
[1759261004228,0.2465,4138.9,4138.5,2.9218]
[1759261004514,2.41627474,4138.7,4138.5,2.9218]
[1759261005188,2.41627474,4138.7,4138.5,3.3717]
[1759261005517,0.001,4139.0,4138.5,3.3717]
[1759261005823,2.41622491,4138.7,4138.5,3.3717]
[1759261006537,2.41622491,4138.7,4138.5,2.9218]
[1759261006695,2.41620959,4138.8,4138.5,3.3717]
[1759261007022,2.41622516,4138.7,4138.5,3.6189]
[1759261007218,2.41622516,4138.7,4138.5,3.3717]
[1759261008420,0.001,4139.0,4138.5,3.3717]
[1759261008624,0.001,4139.0,4138.6,0.72126276]
[1759261009022,0.001,4139.0,4138.7,0.6971]
[1759261009336,0.001,4139.0,4138.8,2.82416159]
[1759261009501,0.001,4139.0,4138.8,3.90957675]
[1759261009698,2.41610089,4138.9,4137.8,0.2472]
[1759261009902,0.2465,4138.8,4138.0,2.8]
[1759261010208,2.41656799,4138.1,4138.0,2.8]
[1759261010409,0.2465,4138.1,4138.0,2.8]
[1759261010741,2.66306799,4138.1,4138.0,2.8]
[1759261011101,0.468,4138.7,4138.0,2.8]
[1759261011326,0.2465,4138.4,4138.1,0.02416567]
[1759261011735,2.66294373,4138.4,4138.1,0.02416567]
[1759261011940,2.41645826,4138.3,4138.1,0.02416567]
[1759261012128,0.2465,4138.3,4138.0,2.8]
[1759261012328,2.41656799,4138.1,4138.0,2.8]
[1759261012644,2.66302682,4138.2,4138.0,2.8]
[1759261012827,2.4166764,4138.0,4137.7,0.4499]
[1759261013027,0.2465,4138.1,4137.8,2.8]
[1759261013345,2.66314014,4138.0,4137.8,2.8]
[1759261013850,2.4164482,4138.4,4137.8,2.8]
[1759261014052,0.2465,4138.3,4137.9,0.02416684]
[1759261014223,2.41650959,4138.2,4137.9,0.02416684]
[1759261014621,0.2465,4138.1,4137.9,0.02416684]
[1759261015427,2.66308509,4138.1,4137.9,0.02416684]
[1759261015624,5.54976504,4138.5,4137.9,0.02416684]
[1759261015843,2.41646077,4138.3,4138.0,0.4499]
[1759261016029,2.66296077,4138.3,4137.9,0.02416684]
[1759261016461,0.2465,4138.2,4137.9,0.02416684]
[1759261017243,0.2465,4138.2,4137.9,0.42676814]
[1759261017871,0.2465,4138.1,4137.9,0.42676814]
[1759261018634,0.2465,4138.1,4137.9,0.54756814]
[1759261018865,0.2465,4138.1,4137.9,0.5234013]
[1759261019048,0.2465,4138.1,4137.9,0.54756814]
[1759261019242,2.41657188,4138.1,4137.9,0.5234013]
[1759261019446,0.2465,4138.0,4137.9,0.5234013]
[1759261019903,0.2465,4138.0,4136.8,0.6971]
[1759261019904,2.41670964,4137.9,4136.8,0.6971]
[1759261020166,2.66324319,4137.8,4137.4,0.1208]
[1759261020473,2.41680407,4137.7,4137.5,2.799]
[1759261020843,0.2465,4137.6,4137.5,2.799]
[1759261021172,2.66322288,4137.9,4137.5,2.799]
[1759261021377,0.2465,4137.8,4137.5,2.799]
[1759261022065,0.2465,4138.2,4137.5,3.38009245]
[1759261022266,2.41667269,4138.0,4137.7,0.1208]
[1759261022468,2.66318479,4137.9,4137.8,2.799]
[1759261022661,5.06318479,4137.9,4137.8,2.799]
[1759261023991,3.1145,4137.9,4137.8,2.799]
[1759261024195,5.06318479,4137.9,4137.8,2.799]
[1759261024706,2.4,4137.9,4137.8,2.799]
[1759261025064,4.81668479,4137.9,4137.8,2.799]
[1759261025594,5.06318479,4137.9,4137.8,2.799]
[1759261026164,4.81668479,4137.9,4137.8,2.799]
[1759261026797,2.4,4137.9,4137.8,3.6169]
[1759261026960,4.81668479,4137.9,4137.8,2.799]
[1759261027158,5.06318479,4137.9,4137.8,2.799]
[1759261027364,2.6465,4137.9,4137.8,2.799]
[1759261027564,5.06318479,4137.9,4137.8,2.799]
[1759261027764,2.6465,4137.9,4137.8,2.799]
[1759261027965,2.4,4137.9,4137.8,3.2489]
[1759261028175,2.4,4137.8,4137.6,0.1208]
[1759261028362,2.6632626,4137.8,4137.7,2.799]
[1759261028579,0.2465,4137.8,4137.7,2.799]
[1759261028788,2.6475,4138.1,4137.7,2.799]
[1759261028985,2.41668708,4137.9,4137.7,2.799]
[1759261029388,2.41664814,4138.0,4137.7,2.799]
[1759261030015,2.41669093,4137.9,4137.7,2.799]
[1759261030165,2.401,4138.1,4137.7,2.799]
[1759261030372,0.001,4138.1,4137.8,0.5707]
[1759261030570,2.41757831,4138.1,4137.9,0.4499]
[1759261030909,0.001,4138.1,4137.8,0.1208]
[1759261031112,2.41757867,4138.1,4137.8,0.1208]
[1759261031294,2.4,4137.9,4137.8,0.1208]
[1759261031604,2.41668479,4137.9,4137.8,2.9198]
[1759261032467,2.65988479,4137.9,4137.8,2.9198]
[1759261032912,2.65988479,4137.9,4137.8,0.1208]
[1759261033113,2.41680383,4137.7,4137.5,0.1208]
[1759261033293,2.65988479,4137.9,4137.5,0.1208]
[1759261033294,2.41676276,4137.8,4137.6,2.798]
[1759261034011,2.4167508,4137.8,4137.6,2.798]
[1759261034210,2.41670649,4137.9,4137.6,2.798]
[1759261034508,2.4,4138.0,4137.7,2.798]
[1759261034804,2.41669639,4137.9,4137.7,2.798]
[1759261034969,2.4,4138.0,4137.5,0.14496918]
[1759261035172,2.4168016,4137.7,4137.6,2.798]
[1759261036314,2.41671671,4137.9,4137.6,2.798]
[1759261036673,2.4167521,4137.8,4137.6,2.798]
[1759261036882,4.81670493,4137.9,4137.6,2.798]
[1759261037074,2.41670493,4137.9,4137.6,2.798]
[1759261037270,4.81664181,4138.0,4137.7,0.4562]
[1759261037499,2.41669485,4137.9,4137.7,0.4562]
[1759261037699,2.4166453,4138.0,4137.6,2.798]
[1759261037909,2.4166453,4138.0,4137.6,3.2542]
[1759261038215,4.8166453,4138.0,4137.6,3.2542]
[1759261038410,2.4166453,4138.0,4137.6,3.2542]
[1759261038848,2.4166932,4137.9,4137.6,3.2542]
[1759261039153,2.41664244,4138.0,4137.6,2.798]
[1759261039308,2.41664244,4138.0,4137.6,3.2725]
[1759261039504,2.5218,4138.1,4137.7,0.7074]
[1759261039505,2.4176151,4138.1,4137.7,0.7074]
[1759261039754,2.4176151,4138.1,4137.8,0.8282]
[1759261039912,4.81664033,4138.0,4137.8,0.1208]
[1759261040112,2.64604033,4138.0,4137.8,0.1208]
[1759261040341,5.04608479,4137.9,4137.8,0.1208]
[1759261040908,4.81668479,4137.9,4137.8,2.9188]
[1759261041352,2.4,4137.8,4136.6,2.513]
[1759261041531,8.62616504,4137.9,4136.6,2.513]
[1759261041532,2.41697361,4137.5,4137.4,0.1208]
[1759261041710,2.41697361,4137.5,4137.4,2.9188]
[1759261041910,5.04637361,4137.5,4137.4,2.9188]
[1759261042214,2.4,4137.5,4137.4,2.9188]
[1759261042620,4.81691842,4137.5,4137.4,2.9188]
[1759261042821,2.4,4137.5,4137.4,2.9188]
[1759261043544,4.81691842,4137.5,4137.4,2.9188]
[1759261043944,2.4,4137.5,4137.4,2.9188]
[1759261044241,5.04631842,4137.5,4137.4,2.9188]
[1759261044440,2.4,4137.5,4137.4,3.3933]
[1759261045554,2.4,4137.5,4137.4,2.9188]
[1759261046050,0.001,4138.0,4137.5,2.41690924]
[1759261046258,0.001,4138.0,4137.5,0.7074]
[1759261046460,0.001,4138.0,4137.8,0.1208]
[1759261046461,0.2304,4138.0,4137.8,0.1208]
[1759261046639,0.2304,4138.0,4137.9,2.797]
[1759261047654,5.49402638,4138.0,4137.9,2.797]
[1759261048156,2.6304,4138.0,4137.9,2.797]